Workbook

Sheet AER adjustments
A1: BUSINESS HOURS ADJUSTMENTS
B2: Labour rates for 2020-21 ($June 021)
B3: Marsden Jacob | C3: United Energy | D3: Adjustment to labour category | E3: Labour weights for fee-based services | F3: Weighted adjustment
A4: Administrative officer | B4: 92.51 | C4: 112.815907 | D4: =IF(C4<=B4,0,B4/C4-1) -> -0.1799915236 | E4: 0.15 | F4: =E4*D4 -> -0.02699872855
A5: Field officer | B5: 171.34 | C5: 164.4033879 | D5: 0 | E5: 0.85 | F5: 0
A6: Technical specialist | B6: 171.34 | C6: 177.3741639 | D6: -0.03401940722 | E6: 0 | F6: 0
A7: Engineer | B7: 150.33 | C7: 156.5452259 | D7: -0.03970243009 | E7: 0 | F7: 0
A8: Senior engineer | B8: 196.58 | C8: 271.8352977 | D8: -0.2768415225 | E8: 0 | F8: 0
E9: Preliminary adjustment factor | F9: =SUM(F4:F8) -> -0.02699872855
E10: Labour composition | F10: 0.9
E11: Fee-based price adjustment | F11: =F9*F10 -> -0.02429885569
A13: AFTER HOURS ADJUSTMENTS
B14: Labour rates for 2020-21 ($June 021)
B15: Marsden Jacob | C15: United Energy | D15: Adjustment to labour category | E15: Labour weights for fee-based services | F15: Weighted adjustment
A16: Administrative officer | B16: =B4*1.75 -> 161.8925 | E16: 0.15 | F16: =E16*D16 -> 
A17: Field officer | B17: =B5*1.75 -> 299.845 | C17: 202.3831348 | D17: =IF(C17<=C5*1.75,0,C5*1.75/C17-1) -> 0 | E17: 0.85 | F17: 0
A18: Technical specialist | B18: =B6*1.75 -> 299.845 | C18: 218.8534437 | D18: =IF(C18<=C6*1.75,0,C6*1.75/C18-1) -> 0 | E18: 0 | F18: 0
A19: Engineer | B19: =B7*1.75 -> 263.0775 | C19: 222.4154256 | D19: =IF(C19<=C7*1.75,0,C7*1.75/C19-1) -> 0 | E19: 0 | F19: 0
A20: Senior engineer | B20: =B8*1.75 -> 344.015 | C20: 312.4748165 | D20: =IF(C20<=C8*1.75,0,C8*1.75/C20-1) -> 0 | E20: 0 | F20: 0
E21: Preliminary adjustment factor | F21: =SUM(F17:F20) -> 0
E22: Labour composition | F22: 0.9
E23: Fee-based price adjustment | F23: =F21*F22 -> 0

Sheet Revenue forecast
A1: United Energy Alternative Control Services forecast revenue | B1: Revenue
B2: $ June 2021
B3: 2021/22 | C3: 2022/23 | D3: 2023/24 | E3: 2024/25 | F3: 2025/26
A4: Basic connections fixed fee | B4: =SUM('Forecast charges BH'!P6:P8,'Forecast charges BH'!P10:P12)+SUM('Forecast charges AH'!P6:P8,'Forecast charges AH'!P10:P12) -> 10841986.15 | C4: =SUM('Forecast charges BH'!Q6:Q8,'Forecast charges BH'!Q10:Q12)+SUM('Forecast charges AH'!Q6:Q8,'Forecast charges AH'!Q10:Q12) -> 10682555.55 | D4: =SUM('Forecast charges BH'!R6:R8,'Forecast charges BH'!R10:R12)+SUM('Forecast charges AH'!R6:R8,'Forecast charges AH'!R10:R12) -> 10545993.26 | E4: =SUM('Forecast charges BH'!S6:S8,'Forecast charges BH'!S10:S12)+SUM('Forecast charges AH'!S6:S8,'Forecast charges AH'!S10:S12) -> 10482022.56 | F4: =SUM('Forecast charges BH'!T6:T8,'Forecast charges BH'!T10:T12)+SUM('Forecast charges AH'!T6:T8,'Forecast charges AH'!T10:T12) -> 10395542.92
A5: Metering and network ancilliary services fixed fee | B5: ='Forecast charges BH'!P41-'Revenue forecast'!B4+'Forecast charges AH'!P39 -> 2484293.818 | C5: ='Forecast charges BH'!Q41-'Revenue forecast'!C4+'Forecast charges AH'!Q39 -> 2582077.909 | D5: ='Forecast charges BH'!R41-'Revenue forecast'!D4+'Forecast charges AH'!R39 -> 2646223.366 | E5: ='Forecast charges BH'!S41-'Revenue forecast'!E4+'Forecast charges AH'!S39 -> 2717830.487 | F5: ='Forecast charges BH'!T41-'Revenue forecast'!F4+'Forecast charges AH'!T39 -> 2797792.315
A6: Quoted services | B6: =SUM('Quoted services RIN'!E13:E18) -> 1563976.762 | C6: =SUM('Quoted services RIN'!F13:F18) -> 1563976.762 | D6: =SUM('Quoted services RIN'!G13:G18) -> 1563976.762 | E6: =SUM('Quoted services RIN'!H13:H18) -> 1563976.762 | F6: =SUM('Quoted services RIN'!I13:I18) -> 1563976.762
A7: Total | B7: =SUM(B4:B6) -> 14890256.73 | C7: =SUM(C4:C6) -> 14828610.22 | D7: =SUM(D4:D6) -> 14756193.38 | E7: =SUM(E4:E6) -> 14763829.81 | F7: =SUM(F4:F6) -> 14757311.99

Sheet Forecast charges BH
A2: Business hours | B2: Charges | J2: Volumes | P2: Revenue
B3: $ June 2021 | P3: $ June 2021
A4: Basic connection services | B4: United proposal 2021/22 | C4: AER draft decision 2021/22 | D4: 2022/23 | E4: 2023/24 | F4: 2024/25 | G4: 2025/26 | J4: 2021/22 | K4: 2022/23 | L4: 2023/24 | M4: 2024/25 | N4: 2025/26 | P4: 2021/22 | Q4: 2022/23 | R4: 2023/24 | S4: 2024/25 | T4: 2025/26
A5: New connection where we are the metering coordinator
A6: Single phase | B6: 513.6670018 | C6: =B6*(1+'AER adjustments'!$F$11) -> 501.1854814 | D6: =C6 -> 501.1854814 | E6: 501.1854814 | F6: 501.1854814 | G6: 501.1854814 | J6: 14241.3539 | K6: 14020.61166 | L6: 13831.5321 | M6: 13742.96042 | N6: 13623.22362 | P6: =J6*C6 -> 7137559.81 | Q6: 7026927.004 | R6: 6932163.073 | S6: 6887772.236 | T6: 6827761.888
A7: Multi-phase DC | B7: 513.6670018 | C7: =B7*(1+'AER adjustments'!$F$11) -> 501.1854814 | D7: 501.1854814 | E7: 501.1854814 | F7: 501.1854814 | G7: 501.1854814 | J7: 5013.45069 | K7: 4935.741762 | L7: 4869.179196 | M7: 4837.998894 | N7: 4795.847385 | P7: 2512668.698 | Q7: 2473722.111 | R7: 2440361.92 | S7: 2424734.805 | T7: 2403609.08
A8: Multi-phase CT | B8: 1783 | C8: =B8*(1+'AER adjustments'!$F$11) -> 1739.67514 | D8: 1739.67514 | E8: 1739.67514 | F8: 1739.67514 | G8: 1739.67514 | J8: 365.3314002 | K8: 359.6687313 | L8: 354.8183005 | M8: 352.5461841 | N8: 349.4745932 | P8: 635557.9549 | Q8: 625706.7506 | R8: 617268.5768 | S8: 613315.8324 | T8: 607972.2619
A9: New connection where we are not the metering coordinator
A10: Single phase | B10: 476.6829019 | C10: =B10*(1+'AER adjustments'!$F$11) -> 465.1000528 | D10: =C10 -> 465.1000528 | E10: 465.1000528 | F10: 465.1000528 | G10: 465.1000528 | J10: 0 | K10: 0 | L10: 0 | M10: 0 | N10: 0 | P10: =J10*C10 -> 0 | Q10: 0 | R10: 0 | S10: 0 | T10: 0
A11: Multi-phase DC | B11: 476.6829019 | C11: =B11*(1+'AER adjustments'!$F$11) -> 465.1000528 | D11: 465.1000528 | E11: 465.1000528 | F11: 465.1000528 | G11: 465.1000528 | J11: 0 | K11: 0 | L11: 0 | M11: 0 | N11: 0 | P11: 0 | Q11: 0 | R11: 0 | S11: 0 | T11: 0
A12: Multi-phase CT | B12: 1627 | C12: =B12*(1+'AER adjustments'!$F$11) -> 1587.465762 | D12: 1587.465762 | E12: 1587.465762 | F12: 1587.465762 | G12: 1587.465762 | J12: 0 | K12: 0 | L12: 0 | M12: 0 | N12: 0 | P12: 0 | Q12: 0 | R12: 0 | S12: 0 | T12: 0
A14: Metering and network ancillary services | B14: United proposal 2021/22 | C14: AER draft decision 2021/22 | D14: 2022/23 | E14: 2023/24 | F14: 2024/25 | G14: 2025/26 | J14: 2021/22 | K14: 2022/23 | L14: 2023/24 | M14: 2024/25 | N14: 2025/26 | P14: 2021/22 | Q14: 2022/23 | R14: 2023/24 | S14: 2024/25 | T14: 2025/26
A15: Meter/NMI/site investigation | B15: =B16 -> 284.3367383 | C15: =B15*(1+'AER adjustments'!$F$11) -> 277.4276809 | D15: =C15 -> 277.4276809 | E15: 277.4276809 | F15: 277.4276809 | G15: 277.4276809 | J15: 765 | K15: 772.65 | L15: 780.3765 | M15: 788.180265 | N15: 796.0620677 | P15: =J15*C15 -> 212232.1759 | Q15: 214354.4977 | R15: 216498.0426 | S15: 218663.0231 | T15: 220849.6533
A16: Meter accuracy test | B16: 284.3367383 | C16: =B16*(1+'AER adjustments'!$F$11) -> 277.4276809 | D16: 277.4276809 | E16: 277.4276809 | F16: 277.4276809 | G16: 277.4276809 | J16: 114 | K16: 114 | L16: 114 | M16: 114 | N16: 114 | P16: 31626.75562 | Q16: 31626.75562 | R16: 31626.75562 | S16: 31626.75562 | T16: 31626.75562
A17: Meter accuracy test - additional meters | B17: N/A | C17: To be proposed by United.
A18: Special reading | B18: 23.88588002 | C18: =B18*(1+'AER adjustments'!$F$11) -> 23.30548047 | D18: 23.30548047 | E18: 23.30548047 | F18: 23.30548047 | G18: 23.30548047 | J18: 139 | K18: 139 | L18: 139 | M18: 139 | N18: 139 | P18: 3239.461785 | Q18: 3239.461785 | R18: 3239.461785 | S18: 3239.461785 | T18: 3239.461785
A19: Remote meter reconfiguration | B19: 67.81435627 | C19: =B19*(1+'AER adjustments'!$F$11) -> 66.16654501 | D19: =C19 -> 66.16654501 | E19: =D19 -> 66.16654501 | F19: =E19 -> 66.16654501 | G19: =F19 -> 66.16654501 | J19: 5768 | K19: 5768 | L19: 5768 | M19: 5768 | N19: 5768 | P19: =J19*C19 -> 381648.6316 | Q19: =K19*D19 -> 381648.6316 | R19: =L19*E19 -> 381648.6316 | S19: =M19*F19 -> 381648.6316 | T19: =N19*G19 -> 381648.6316
A20: Remote energisation | B20: N/A | C20: N/A | D20: N/A | E20: N/A | F20: N/A | G20: N/A | J20: N/A | K20: N/A | L20: N/A | M20: N/A | N20: N/A | P20: N/A | Q20: N/A | R20: N/A | S20: N/A | T20: N/A
A21: Remote de‑energisation | B21: N/A | C21: N/A | D21: N/A | E21: N/A | F21: N/A | G21: N/A | J21: N/A | K21: N/A | L21: N/A | M21: N/A | N21: N/A | P21: N/A | Q21: N/A | R21: N/A | S21: N/A | T21: N/A
A22: Manual re-energisation (incl customer transfer) | B22: 50.86340029 | C22: =B22*(1+'AER adjustments'!$F$11) -> 49.62747787 | D22: =C22 -> 49.62747787 | E22: 49.62747787 | F22: 49.62747787 | G22: 49.62747787 | J22: 3438 | K22: 3850.56 | L22: 4312.6272 | M22: 4830.142464 | N22: 5409.75956 | P22: =J22*C22 -> 170619.2689 | Q22: 191093.5812 | R22: 214024.8109 | S22: 239707.7882 | T22: 268472.7228
A23: Manual re-energisation (same day) | B23: 76.67011126 | C23: =B23*(1+'AER adjustments'!$F$11) -> 74.80711529 | D23: 74.80711529 | E23: 74.80711529 | F23: 74.80711529 | G23: 74.80711529 | J23: 1320 | K23: 1478.4 | L23: 1655.808 | M23: 1854.50496 | N23: 2077.045555 | P23: 98745.39219 | Q23: 110594.8393 | R23: 123866.22 | S23: 138730.1664 | T23: 155377.7863
A24: Manual de-energisation | B24: 50.86340029 | C24: =B24*(1+'AER adjustments'!$F$11) -> 49.62747787 | D24: 49.62747787 | E24: 49.62747787 | F24: 49.62747787 | G24: 49.62747787 | J24: 3868 | K24: 4332.16 | L24: 4852.0192 | M24: 5434.261504 | N24: 6086.372884 | P24: 191959.0844 | Q24: 214994.1745 | R24: 240793.4755 | S24: 269688.6925 | T24: 302051.3356
A25: Service truck – first 30 minutes (unit rate) | B25: 364.9395293 | C25: =B25*(1+'AER adjustments'!$F$11) -> 356.0719163 | D25: N/A | E25: N/A | F25: N/A | G25: N/A | J25: N/A | K25: N/A | L25: N/A | M25: N/A | N25: N/A | P25: N/A | Q25: N/A | R25: N/A | S25: N/A | T25: N/A
A26: Truck Visit + 1x additional 15 mins | B26: 440.4088509 | C26: =B26*(1+'AER adjustments'!$F$11) -> 429.7074198 | D26: N/A | E26: N/A | F26: N/A | G26: N/A | J26: N/A | K26: N/A | L26: N/A | M26: N/A | N26: N/A | P26: N/A | Q26: N/A | R26: N/A | S26: N/A | T26: N/A
A27: Truck Visit + 2x additional 15 mins | B27: 515.8787121 | C27: =B27*(1+'AER adjustments'!$F$11) -> 503.3434497 | D27: N/A | E27: N/A | F27: N/A | G27: N/A | J27: N/A | K27: N/A | L27: N/A | M27: N/A | N27: N/A | P27: N/A | Q27: N/A | R27: N/A | S27: N/A | T27: N/A
A28: Truck Visit + 3x additional 15 mins | B28: 591.3280475 | C28: =B28*(1+'AER adjustments'!$F$11) -> 576.9594526 | D28: N/A | E28: N/A | F28: N/A | G28: N/A | J28: N/A | K28: N/A | L28: N/A | M28: N/A | N28: N/A | P28: N/A | Q28: N/A | R28: N/A | S28: N/A | T28: N/A
A29: Truck Visit + 4x additional 15 mins | B29: 666.787376 | C29: =B29*(1+'AER adjustments'!$F$11) -> 650.5852057 | D29: N/A | E29: N/A | F29: N/A | G29: N/A | J29: N/A | K29: N/A | L29: N/A | M29: N/A | N29: N/A | P29: N/A | Q29: N/A | R29: N/A | S29: N/A | T29: N/A
A30: Truck Visit + 5x additional 15 mins | B30: 742.2572372 | C30: =B30*(1+'AER adjustments'!$F$11) -> 724.2212357 | D30: N/A | E30: N/A | F30: N/A | G30: N/A | J30: N/A | K30: N/A | L30: N/A | M30: N/A | N30: N/A | P30: N/A | Q30: N/A | R30: N/A | S30: N/A | T30: N/A
A31: Truck Visit + 6x additional 15 mins | B31: 817.6965795 | C31: =B31*(1+'AER adjustments'!$F$11) -> 797.8274883 | D31: N/A | E31: N/A | F31: N/A | G31: N/A | J31: N/A | K31: N/A | L31: N/A | M31: N/A | N31: N/A | P31: N/A | Q31: N/A | R31: N/A | S31: N/A | T31: N/A
A32: Wasted service truck visit (unit rate) | B32: 316.5376665 | C32: =B32*(1+'AER adjustments'!$F$11) -> 308.8461634 | D32: N/A | E32: N/A | F32: N/A | G32: N/A | J32: N/A | K32: N/A | L32: N/A | M32: N/A | N32: N/A | P32: N/A | Q32: N/A | R32: N/A | S32: N/A | T32: N/A
A33: Failed field visit (simple tasks) | B33: N/A | C33: =C18 -> 23.30548047 | D33: =C33 -> 23.30548047 | E33: 23.30548047 | F33: 23.30548047 | G33: 23.30548047
A34: Isolation of supply or reconnection, excluding HV (single) | B34: ='New charges calc'!$C$27 -> 326.3277349 | C34: =B34*(1+'AER adjustments'!$F$11) -> 318.3983444 | D34: ='New charges calc'!D27 -> 326.3277349 | E34: ='New charges calc'!E27 -> 326.3277349 | F34: ='New charges calc'!F27 -> 326.3277349 | G34: ='New charges calc'!G27 -> 326.3277349 | J34: ='New charges calc'!C8 -> 520.6604667 | K34: ='New charges calc'!D8 -> 520.6604667 | L34: ='New charges calc'!E8 -> 520.6604667 | M34: ='New charges calc'!F8 -> 520.6604667 | N34: ='New charges calc'!G8 -> 520.6604667 | P34: =J34*C34 -> 165777.4306 | Q34: 169905.9508 | R34: 169905.9508 | S34: 169905.9508 | T34: 169905.9508
A35: Isolation of supply and reconnection after isolation, excluding HV (same day) | B35: ='New charges calc'!$C$29 -> 600.3740115 | C35: =B35*(1+'AER adjustments'!$F$11) -> 585.78561 | D35: ='New charges calc'!D29 -> 600.3740115 | E35: ='New charges calc'!E29 -> 600.3740115 | F35: ='New charges calc'!F29 -> 600.3740115 | G35: ='New charges calc'!G29 -> 600.3740115 | J35: ='New charges calc'!C10 -> 86.18802841 | K35: ='New charges calc'!D10 -> 86.18802841 | L35: ='New charges calc'!E10 -> 86.18802841 | M35: ='New charges calc'!F10 -> 86.18802841 | N35: ='New charges calc'!G10 -> 86.18802841 | P35: 50487.7068 | Q35: 51745.05236 | R35: 51745.05236 | S35: 51745.05236 | T35: 51745.05236
A36: Standard alteration, 30-60 minutes | B36: ='New charges calc'!$C$28 -> 563.9068493 | C36: =B36*(1+'AER adjustments'!$F$11) -> 550.2045581 | D36: ='New charges calc'!D$28 -> 563.9068493 | E36: ='New charges calc'!E$28 -> 563.9068493 | F36: ='New charges calc'!F$28 -> 563.9068493 | G36: ='New charges calc'!G$28 -> 563.9068493 | J36: ='New charges calc'!C9 -> 1334.501522 | K36: ='New charges calc'!D9 -> 1334.501522 | L36: ='New charges calc'!E9 -> 1334.501522 | M36: ='New charges calc'!F9 -> 1334.501522 | N36: ='New charges calc'!G9 -> 1334.501522 | P36: 734248.8201 | Q36: 752534.5485 | R36: 752534.5485 | S36: 752534.5485 | T36: 752534.5485
A37: Complex alteration, > 60 minutes | B37: ='New charges calc'!$C$30 -> 700.8810682 | C37: =B37*(1+'AER adjustments'!$F$11) -> 683.8504603 | D37: ='New charges calc'!D$30 -> 700.8810682 | E37: ='New charges calc'!E$30 -> 700.8810682 | F37: ='New charges calc'!F$30 -> 700.8810682 | G37: ='New charges calc'!G$30 -> 700.8810682 | J37: ='New charges calc'!C11 -> 147.6499831 | K37: ='New charges calc'!D11 -> 147.6499831 | L37: ='New charges calc'!E11 -> 147.6499831 | M37: ='New charges calc'!F11 -> 147.6499831 | N37: ='New charges calc'!G11 -> 147.6499831 | P37: =J37*C37 -> 100970.5089 | Q37: 103485.0779 | R37: 103485.0779 | S37: 103485.0779 | T37: 103485.0779
A38: Failed field visit (unable to perform customer requested task) | B38: =$B$32 -> 316.5376665 | C38: =B38*(1+'AER adjustments'!$F$11) -> 308.8461634 | D38: =C38 -> 308.8461634 | E38: =D38 -> 308.8461634 | F38: =E38 -> 308.8461634 | G38: =F38 -> 308.8461634 | J38: 505 | K38: 505 | L38: 505 | M38: 505 | N38: 505 | P38: 155967.3125 | Q38: 155967.3125 | R38: 155967.3125 | S38: 155967.3125 | T38: 155967.3125
A40: Total fee-based services BH | P40: 2021/22 | Q40: 2022/23 | R40: 2023/24 | S40: 2024/25 | T40: 2025/26
A41: Fee-based service BH | P41: =SUM(P22:P38,P15:P21,P6:P12) -> 12583309.01 | Q41: =SUM(Q22:Q38,Q15:Q21,Q6:Q12) -> 12507545.75 | R41: =SUM(R22:R38,R15:R21,R6:R12) -> 12435128.91 | S41: =SUM(S22:S38,S15:S21,S6:S12) -> 12442765.33 | T41: =SUM(T22:T38,T15:T21,T6:T12) -> 12436247.52

Sheet Forecast charges AH
A2: After hours | J2: Volumes | P2: Revenue
B3: $ June 2021 | P3: $ June 2021
A4: Basic connection services | B4: United proposal 2021/22 | C4: AER draft decision 2021/22 | D4: 2022/23 | E4: 2023/24 | F4: 2024/25 | G4: 2025/26 | J4: 2021/22 | K4: 2022/23 | L4: 2023/24 | M4: 2024/25 | N4: 2025/26 | P4: 2021/22 | Q4: 2022/23 | R4: 2023/24 | S4: 2024/25 | T4: 2025/26
A5: New connection where we are the metering coordinator
A6: Single phase | B6: 784.4747374 | C6: =B6*(1+'AER adjustments'!$F$23) -> 784.4747374 | D6: =C6 -> 784.4747374 | E6: 784.4747374 | F6: 784.4747374 | G6: 784.4747374 | J6: 479 | K6: 479 | L6: 479 | M6: 479 | N6: 479 | P6: =J6*C6 -> 375763.3992 | Q6: 375763.3992 | R6: 375763.3992 | S6: 375763.3992 | T6: 375763.3992
A7: Multi-phase DC | B7: 784.4747374 | C7: =B7*(1+'AER adjustments'!$F$23) -> 784.4747374 | D7: 784.4747374 | E7: 784.4747374 | F7: 784.4747374 | G7: 784.4747374 | J7: 171 | K7: 171 | L7: 171 | M7: 171 | N7: 171 | P7: 134145.1801 | Q7: 134145.1801 | R7: 134145.1801 | S7: 134145.1801 | T7: 134145.1801
A8: Multi-phase CT | B8: 2723.006251 | C8: =B8*(1+'AER adjustments'!$F$23) -> 2723.006251 | D8: 2723.006251 | E8: 2723.006251 | F8: 2723.006251 | G8: 2723.006251 | J8: 17 | K8: 17 | L8: 17 | M8: 17 | N8: 17 | P8: 46291.10627 | Q8: 46291.10627 | R8: 46291.10627 | S8: 46291.10627 | T8: 46291.10627
A9: New connection where we are not the metering coordinator
A10: Single phase | B10: 784.4747374 | C10: =B10*(1+'AER adjustments'!$F$23) -> 784.4747374 | D10: =C10 -> 784.4747374 | E10: 784.4747374 | F10: 784.4747374 | G10: 784.4747374 | J10: 0 | K10: 0 | L10: 0 | M10: 0 | N10: 0 | P10: =J10*C10 -> 0 | Q10: 0 | R10: 0 | S10: 0 | T10: 0
A11: Multi-phase DC | B11: 784.4747374 | C11: =B11*(1+'AER adjustments'!$F$23) -> 784.4747374 | D11: 784.4747374 | E11: 784.4747374 | F11: 784.4747374 | G11: 784.4747374 | J11: 0 | K11: 0 | L11: 0 | M11: 0 | N11: 0 | P11: 0 | Q11: 0 | R11: 0 | S11: 0 | T11: 0
A12: Multi-phase CT | B12: 2723.006251 | C12: =B12*(1+'AER adjustments'!$F$23) -> 2723.006251 | D12: 2723.006251 | E12: 2723.006251 | F12: 2723.006251 | G12: 2723.006251 | J12: 0 | K12: 0 | L12: 0 | M12: 0 | N12: 0 | P12: 0 | Q12: 0 | R12: 0 | S12: 0 | T12: 0
A14: Metering and network ancillary services | B14: United proposal 2021/22 | C14: AER draft decision 2021/22 | D14: 2022/23 | E14: 2023/24 | F14: 2024/25 | G14: 2025/26 | J14: 2021/22 | K14: 2022/23 | L14: 2023/24 | M14: 2024/25 | N14: 2025/26 | P14: 2021/22 | Q14: 2022/23 | R14: 2023/24 | S14: 2024/25 | T14: 2025/26
A15: Meter/NMI/site investigation | B15: 534.04 | C15: ='Forecast charges BH'!C15*1.75 -> 485.4984416 | D15: ='New charges calc'!D57 -> 623.2353872 | E15: ='New charges calc'!E57 -> 623.2353872 | F15: ='New charges calc'!F57 -> 623.2353872 | G15: ='New charges calc'!G57 -> 623.2353872 | J15: 0 | K15: 0 | L15: 0 | M15: 0 | N15: 0 | P15: =J15*C15 -> 0 | Q15: 0 | R15: 0 | S15: 0 | T15: 0
A16: Meter accuracy test | B16: =B15 -> 534.04 | C16: ='Forecast charges BH'!C16*1.75 -> 485.4984416 | D16: =D15 -> 623.2353872 | E16: =E15 -> 623.2353872 | F16: =F15 -> 623.2353872 | G16: =G15 -> 623.2353872 | J16: 0 | K16: 0 | L16: 0 | M16: 0 | N16: 0 | P16: 0 | Q16: 0 | R16: 0 | S16: 0 | T16: 0
A17: Special reading | B17: N/A | C17: =B17 -> N/A | D17: N/A | E17: N/A | F17: N/A | G17: N/A | J17: N/A | K17: N/A | L17: N/A | M17: N/A | N17: N/A | P17: N/A | Q17: N/A | R17: N/A | S17: N/A | T17: N/A
A18: Remote meter reconfiguration | B18: N/A | C18: =B18 -> N/A | D18: =C18 -> N/A | E18: =D18 -> N/A | F18: =E18 -> N/A | G18: =F18 -> N/A | J18: N/A | K18: N/A | L18: N/A | M18: N/A | N18: N/A | P18: N/A | Q18: N/A | R18: N/A | S18: N/A | T18: N/A
A19: Remote re‑energisation | B19: N/A | C19: N/A | D19: N/A | E19: N/A | F19: N/A | G19: N/A | J19: N/A | K19: N/A | L19: N/A | M19: N/A | N19: N/A | P19: N/A | Q19: N/A | R19: N/A | S19: N/A | T19: N/A
A20: Remote de‑energisation | B20: N/A | C20: N/A | D20: N/A | E20: N/A | F20: N/A | G20: N/A | J20: N/A | K20: N/A | L20: N/A | M20: N/A | N20: N/A | P20: N/A | Q20: N/A | R20: N/A | S20: N/A | T20: N/A
A21: Manual re-energisation (incl customer transfer) | B21: 90.24907924 | C21: ='Forecast charges BH'!C22*1.75 -> 86.84808627 | D21: =C21 -> 86.84808627 | E21: 86.84808627 | F21: 86.84808627 | G21: 86.84808627 | J21: 331 | K21: 331 | L21: 331 | M21: 331 | N21: 331 | P21: =J21*C21 -> 28746.71655 | Q21: =K21*D21 -> 28746.71655 | R21: =L21*E21 -> 28746.71655 | S21: =M21*F21 -> 28746.71655 | T21: =N21*G21 -> 28746.71655
A22: Manual re-energisation (same day) | B22: N/A | C22: =B22 -> N/A | D22: =C22 -> N/A | E22: =D22 -> N/A | F22: =E22 -> N/A | G22: =F22 -> N/A | J22: N/A | K22: N/A | L22: N/A | M22: N/A | N22: N/A | P22: N/A | Q22: N/A | R22: N/A | S22: N/A | T22: N/A
A23: Manual de-energisation | B23: N/A | C23: N/A | D23: N/A | E23: N/A | F23: N/A | G23: N/A | J23: N/A | K23: N/A | L23: N/A | M23: N/A | N23: N/A | P23: N/A | Q23: N/A | R23: N/A | S23: N/A | T23: N/A
A24: Service truck – first 30 minutes (unit rate) | B24: N/A | C24: N/A | D24: N/A | E24: N/A | F24: N/A | G24: N/A | J24: N/A | K24: N/A | L24: N/A | M24: N/A | N24: N/A | P24: N/A | Q24: N/A | R24: N/A | S24: N/A | T24: N/A
A25: Truck Visit + 1x additional 15 mins | B25: 912.3185741 | C25: N/A | D25: N/A | E25: N/A | F25: N/A | G25: N/A | J25: N/A | K25: N/A | L25: N/A | M25: N/A | N25: N/A | P25: N/A | Q25: N/A | R25: N/A | S25: N/A | T25: N/A
A26: Truck Visit + 2x additional 15 mins | B26: 1016.997653 | C26: N/A | D26: N/A | E26: N/A | F26: N/A | G26: N/A | J26: N/A | K26: N/A | L26: N/A | M26: N/A | N26: N/A | P26: N/A | Q26: N/A | R26: N/A | S26: N/A | T26: N/A
A27: Truck Visit + 3x additional 15 mins | B27: 1121.656206 | C27: N/A | D27: N/A | E27: N/A | F27: N/A | G27: N/A | J27: N/A | K27: N/A | L27: N/A | M27: N/A | N27: N/A | P27: N/A | Q27: N/A | R27: N/A | S27: N/A | T27: N/A
A28: Truck Visit + 4x additional 15 mins | B28: 1226.294772 | C28: N/A | D28: N/A | E28: N/A | F28: N/A | G28: N/A | J28: N/A | K28: N/A | L28: N/A | M28: N/A | N28: N/A | P28: N/A | Q28: N/A | R28: N/A | S28: N/A | T28: N/A
A29: Truck Visit + 5x additional 15 mins | B29: 1330.943332 | C29: N/A | D29: N/A | E29: N/A | F29: N/A | G29: N/A | J29: N/A | K29: N/A | L29: N/A | M29: N/A | N29: N/A | P29: N/A | Q29: N/A | R29: N/A | S29: N/A | T29: N/A
A30: Truck Visit + 6x additional 15 mins | B30: 1435.622411 | C30: N/A | D30: N/A | E30: N/A | F30: N/A | G30: N/A | J30: N/A | K30: N/A | L30: N/A | M30: N/A | N30: N/A | P30: N/A | Q30: N/A | R30: N/A | S30: N/A | T30: N/A
A31: Wasted service truck visit (unit rate) | B31: 807.6700143 | C31: N/A | D31: N/A | E31: N/A | F31: N/A | G31: N/A | J31: N/A | K31: N/A | L31: N/A | M31: N/A | N31: N/A | P31: N/A | Q31: N/A | R31: N/A | S31: N/A | T31: N/A
A32: Isolation of supply or reconnection, excluding HV (single) | B32: ='New charges calc'!$C$57 -> 623.2353872 | C32: ='Forecast charges BH'!C34*1.75 -> 557.1971027 | D32: ='New charges calc'!D57 -> 623.2353872 | E32: ='New charges calc'!E57 -> 623.2353872 | F32: ='New charges calc'!F57 -> 623.2353872 | G32: ='New charges calc'!G57 -> 623.2353872 | J32: ='New charges calc'!C38 -> 30 | K32: ='New charges calc'!D38 -> 30 | L32: ='New charges calc'!E38 -> 30 | M32: ='New charges calc'!F38 -> 30 | N32: ='New charges calc'!G38 -> 30 | P32: =J32*C32 -> 16715.91308 | Q32: =K32*D32 -> 18697.06162 | R32: =L32*E32 -> 18697.06162 | S32: =M32*F32 -> 18697.06162 | T32: =N32*G32 -> 18697.06162
A33: Isolation of supply and reconnection after isolation, excluding HV (same day) | B33: N/A | C33: N/A | D33: N/A | E33: N/A | F33: N/A | G33: N/A | J33: N/A | K33: N/A | L33: N/A | M33: N/A | N33: N/A | P33: N/A | Q33: N/A | R33: N/A | S33: N/A | T33: N/A
A34: Standard alteration, <60 minutes | B34: ='New charges calc'!$C$58 -> 1076.974667 | C34: ='Forecast charges BH'!C36*1.75 -> 962.8579767 | D34: ='New charges calc'!D$58 -> 1076.974667 | E34: ='New charges calc'!E$58 -> 1076.974667 | F34: ='New charges calc'!F$58 -> 1076.974667 | G34: ='New charges calc'!G$58 -> 1076.974667 | J34: ='New charges calc'!C39 -> 79 | K34: ='New charges calc'!D39 -> 79 | L34: ='New charges calc'!E39 -> 79 | M34: ='New charges calc'!F39 -> 79 | N34: ='New charges calc'!G39 -> 79 | P34: =J34*C34 -> 76065.78016 | Q34: 85080.99868 | R34: 85080.99868 | S34: 85080.99868 | T34: 85080.99868
A35: Complex alteration, > 60 minutes | B35: ='New charges calc'!$C$60 -> 1338.574192 | C35: ='Forecast charges BH'!C37*1.75 -> 1196.738305 | D35: ='New charges calc'!D$60 -> 1338.574192 | E35: ='New charges calc'!E$60 -> 1338.574192 | F35: ='New charges calc'!F$60 -> 1338.574192 | G35: ='New charges calc'!G$60 -> 1338.574192 | J35: ='New charges calc'!C41 -> 22 | K35: ='New charges calc'!D41 -> 22 | L35: ='New charges calc'!E41 -> 22 | M35: ='New charges calc'!F41 -> 22 | N35: ='New charges calc'!G41 -> 22 | P35: 26328.24272 | Q35: 29448.63221 | R35: 29448.63221 | S35: 29448.63221 | T35: 29448.63221
A36: Failed field visit (unable to perform customer requested task) | B36: =$B$31 -> 807.6700143 | C36: ='Forecast charges BH'!C38*1.75 -> 540.4807859 | D36: =C36 -> 540.4807859 | E36: =D36 -> 540.4807859 | F36: =E36 -> 540.4807859 | G36: =F36 -> 540.4807859 | J36: 72 | K36: 72 | L36: 72 | M36: 72 | N36: 72 | P36: 38914.61659 | Q36: 38914.61659 | R36: 38914.61659 | S36: 38914.61659 | T36: 38914.61659
A38: Total fee-based services AH | P38: 2021/22 | Q38: 2022/23 | R38: 2023/24 | S38: 2024/25 | T38: 2025/26
A39: Fee-based service AH | P39: =SUM(P21:P36,P15:P20,P6:P12) -> 742970.9547 | Q39: =SUM(Q21:Q36,Q15:Q20,Q6:Q12) -> 757087.7112 | R39: =SUM(R21:R36,R15:R20,R6:R12) -> 757087.7112 | S39: =SUM(S21:S36,S15:S20,S6:S12) -> 757087.7112 | T39: =SUM(T21:T36,T15:T20,T6:T12) -> 757087.7112

Sheet New charges calc
A2: Business hours
A4: All services previously classified as service truck visits | C4: 2021/22 | D4: 2022/23 | E4: 2023/24 | F4: 2024/25 | G4: 2025/26
A5: Revenue | B5: $2021 | C5: =C12*'Forecast charges BH'!B27 -> 1077670.63 | D5: =C5 -> 1077670.63 | E5: =D5 -> 1077670.63 | F5: =E5 -> 1077670.63 | G5: =F5 -> 1077670.63
A7: Volumes break-down | C7: 2021/22 | D7: 2022/23 | E7: 2023/24 | F7: 2024/25 | G7: 2025/26
A8: Isolation of supply or reconnection, excluding HV (single) | B8: Number | C8: =M8*$C$12 -> 520.6604667 | D8: =C8 -> 520.6604667 | E8: 520.6604667 | F8: 520.6604667 | G8: 520.6604667 | L8: 737 | M8: =L8/$L$12 -> 0.2492390937
A9: Standard alteration, <60 minutes | B9: Number | C9: =M9*$C$12 -> 1334.501522 | D9: 1334.501522 | E9: 1334.501522 | F9: 1334.501522 | G9: 1334.501522 | L9: =981+908 -> 1889 | M9: =L9/$L$12 -> 0.6388231316
A10: Isolation of supply and reconnection after isolation, excluding HV (same day) | B10: Number | C10: =M10*$C$12 -> 86.18802841 | D10: 86.18802841 | E10: 86.18802841 | F10: 86.18802841 | G10: 86.18802841 | L10: 122 | M10: =L10/$L$12 -> 0.04125803179
A11: Complex alteration, > 60 minutes | B11: Number | C11: =M11*$C$12 -> 147.6499831 | D11: 147.6499831 | E11: 147.6499831 | F11: 147.6499831 | G11: 147.6499831 | L11: 209 | M11: =L11/$L$12 -> 0.07067974298
A12: Total | B12: Number | C12: 2089 | D12: 2089 | E12: 2089 | F12: 2089 | G12: 2089 | L12: =SUM(L8:L11) -> 2957 | M12: =L12/$L$12 -> 1
A14: Price weighted volumes | C14: 2021/22 | D14: 2022/23 | E14: 2023/24 | F14: 2024/25 | G14: 2025/26 | J14: Price ratio
A15: Isolation of supply or reconnection, excluding HV (single) | B15: $2021 | C15: =C8*J15 -> 520.6604667 | D15: =C15 -> 520.6604667 | E15: 520.6604667 | F15: 520.6604667 | G15: 520.6604667 | J15: 1
A16: Standard alteration, <60 minutes | B16: $2021 | C16: =C9*J16 -> 2306.069843 | D16: 2306.069843 | E16: 2306.069843 | F16: 2306.069843 | G16: 2306.069843 | J16: 1.728038377
A17: Isolation of supply and reconnection after isolation, excluding HV (same day) | B17: $2021 | C17: =C10*J17 -> 158.5677429 | D17: 158.5677429 | E17: 158.5677429 | F17: 158.5677429 | G17: 158.5677429 | J17: 1.839788492
A18: Complex alteration, > 60 minutes | B18: $2021 | C18: =C11*J18 -> 317.1200814 | D18: 317.1200814 | E18: 317.1200814 | F18: 317.1200814 | G18: 317.1200814 | J18: 2.147782714
A20: Revenue per service | C20: 2021/22 | D20: 2022/23 | E20: 2023/24 | F20: 2024/25 | G20: 2025/26
A21: Isolation of supply or reconnection, excluding HV (single) | B21: $2021 | C21: =C$5/(C$15+C$16+C$17+C$18)*C15 -> 169905.9508 | D21: =C21 -> 169905.9508 | E21: 169905.9508 | F21: 169905.9508 | G21: 169905.9508
A22: Standard alteration, <60 minutes | B22: $2021 | C22: =C$5/(C$15+C$16+C$17+C$18)*C16 -> 752534.5485 | D22: 752534.5485 | E22: 752534.5485 | F22: 752534.5485 | G22: 752534.5485
A23: Isolation of supply and reconnection after isolation, excluding HV (same day) | B23: $2021 | C23: =C$5/(C$15+C$16+C$17+C$18)*C17 -> 51745.05236 | D23: 51745.05236 | E23: 51745.05236 | F23: 51745.05236 | G23: 51745.05236
A24: Complex alteration, > 60 minutes | B24: $2021 | C24: =C$5/(C$15+C$16+C$17+C$18)*C18 -> 103485.0779 | D24: 103485.0779 | E24: 103485.0779 | F24: 103485.0779 | G24: 103485.0779
A26: Weighted service charges | C26: 2021/22 | D26: 2022/23 | E26: 2023/24 | F26: 2024/25 | G26: 2025/26
A27: Isolation of supply or reconnection, excluding HV (single) | B27: $2021 | C27: =C21/C8 -> 326.3277349 | D27: =C27 -> 326.3277349 | E27: 326.3277349 | F27: 326.3277349 | G27: 326.3277349
A28: Standard alteration, <60 minutes | B28: $2021 | C28: =C22/C9 -> 563.9068493 | D28: 563.9068493 | E28: 563.9068493 | F28: 563.9068493 | G28: 563.9068493
A29: Isolation of supply and reconnection after isolation, excluding HV (same day) | B29: $2021 | C29: =C23/C10 -> 600.3740115 | D29: 600.3740115 | E29: 600.3740115 | F29: 600.3740115 | G29: 600.3740115
A30: Complex alteration, > 60 minutes | B30: $2021 | C30: =C24/C11 -> 700.8810682 | D30: 700.8810682 | E30: 700.8810682 | F30: 700.8810682 | G30: 700.8810682
A32: After hours
A34: All services previously classified as service truck visits | C34: 2021/22 | D34: 2022/23 | E34: 2023/24 | F34: 2024/25 | G34: 2025/26
A35: Revenue | B35: $2021 | C35: =C42*'Forecast charges AH'!B26 -> 133226.6925 | D35: =C35 -> 133226.6925 | E35: =D35 -> 133226.6925 | F35: =E35 -> 133226.6925 | G35: =F35 -> 133226.6925
A37: Volumes break-down | C37: 2021/22 | D37: 2022/23 | E37: 2023/24 | F37: 2024/25 | G37: 2025/26
A38: Isolation of supply or reconnection, excluding HV (single) | B38: Number | C38: 30 | D38: =C38 -> 30 | E38: 30 | F38: 30 | G38: 30
A39: Standard alteration, <60 minutes | B39: Number | C39: 79 | D39: 79 | E39: 79 | F39: 79 | G39: 79
A40: Isolation of supply and reconnection after isolation, excluding HV (same day) | B40: Number | C40: N/A | D40: N/A | E40: N/A | F40: N/A | G40: N/A
A41: Complex alteration, > 60 minutes | B41: Number | C41: 22 | D41: 22 | E41: 22 | F41: 22 | G41: 22
A42: Total | B42: Number | C42: 131 | D42: 131 | E42: 131 | F42: 131 | G42: 131
A44: Price weighted volumes | C44: 2021/22 | D44: 2022/23 | E44: 2023/24 | F44: 2024/25 | G44: 2025/26 | J44: Price ratio
A45: Isolation of supply or reconnection, excluding HV (single) | B45: $2021 | C45: =C38*J45 -> 30 | D45: =C45 -> 30 | E45: 30 | F45: 30 | G45: 30 | J45: 1
A46: Standard alteration, <60 minutes | B46: $2021 | C46: =C39*J46 -> 136.5150318 | D46: 136.5150318 | E46: 136.5150318 | F46: 136.5150318 | G46: 136.5150318 | J46: 1.728038377
A47: Isolation of supply and reconnection after isolation, excluding HV (same day) | B47: $2021 | C47: N/A | D47: N/A | E47: N/A | F47: N/A | G47: N/A | J47: N/A
A48: Complex alteration, > 60 minutes | B48: $2021 | C48: =C41*J48 -> 47.25121971 | D48: 47.25121971 | E48: 47.25121971 | F48: 47.25121971 | G48: 47.25121971 | J48: 2.147782714
A50: Revenue per service | C50: 2021/22 | D50: 2022/23 | E50: 2023/24 | F50: 2024/25 | G50: 2025/26
A51: Isolation of supply or reconnection, excluding HV (single) | B51: $2021 | C51: =C$35/(C$45+C$46+C$48)*C45 -> 18697.06162 | D51: =C51 -> 18697.06162 | E51: 18697.06162 | F51: 18697.06162 | G51: 18697.06162
A52: Standard alteration, <60 minutes | B52: $2021 | C52: =C$35/(C$45+C$46+C$48)*C46 -> 85080.99868 | D52: 85080.99868 | E52: 85080.99868 | F52: 85080.99868 | G52: 85080.99868
A53: Isolation of supply and reconnection after isolation, excluding HV (same day) | B53: $2021 | C53: N/A | D53: N/A | E53: N/A | F53: N/A | G53: N/A
A54: Complex alteration, > 60 minutes | B54: $2021 | C54: =C$35/(C$45+C$46+C$48)*C48 -> 29448.63221 | D54: 29448.63221 | E54: 29448.63221 | F54: 29448.63221 | G54: 29448.63221
A56: Weighted service charges | C56: 2021/22 | D56: 2022/23 | E56: 2023/24 | F56: 2024/25 | G56: 2025/26
A57: Isolation of supply or reconnection, excluding HV (single) | B57: $2021 | C57: =C51/C38 -> 623.2353872 | D57: =C57 -> 623.2353872 | E57: 623.2353872 | F57: 623.2353872 | G57: 623.2353872
A58: Standard alteration, <60 minutes | B58: $2021 | C58: =C52/C39 -> 1076.974667 | D58: 1076.974667 | E58: 1076.974667 | F58: 1076.974667 | G58: 1076.974667
A59: Isolation of supply and reconnection after isolation, excluding HV (same day) | B59: $2021 | C59: N/A | D59: N/A | E59: N/A | F59: N/A | G59: N/A
A60: Complex alteration, > 60 minutes | B60: $2021 | C60: =C54/C41 -> 1338.574192 | D60: 1338.574192 | E60: 1338.574192 | F60: 1338.574192 | G60: 1338.574192

Sheet Fee-based services RIN
B1: REGULATORY REPORTING STATEMENT
B2: United Energy
B3: 2021-22 to 2025-26
B4: 4.3 ANCILLARY SERVICES - FEE BASED SERVICES
B6: There are TWO tables on this worksheet. The COLUMNS representing each table have been 'grouped' for easy navigation. See the Instructions sheet on how to group or ungroup data.
B8: 4.3.1 - COST METRICS FOR FEE-BASED SERVICES
B9: SERVICE SUBCATEGORY | C9: EXPENDITURE ($0's, real June 2021) | J9: VOLUMES (0's)
C10: 2019-20 | D10: 2020-21 | E10: 2021-22 | F10: 2022-23 | G10: 2023-24 | H10: 2024-25 | I10: 2025-26 | J10: 2019-20 | K10: 2020-21 | L10: 2021-22 | M10: 2022-23 | N10: 2023-24 | O10: 2024-25 | P10: 2025-26
B11: COMMON FEE-BASED SERVICES
B12: Energisation
B13: De-energisation | C13: 184824.8808 | D13: 190661.456 | E13: =SUM('Forecast charges BH'!P24) -> 191959.0844 | F13: =SUM('Forecast charges BH'!Q24) -> 214994.1745 | G13: =SUM('Forecast charges BH'!R24) -> 240793.4755 | H13: =SUM('Forecast charges BH'!S24) -> 269688.6925 | I13: =SUM('Forecast charges BH'!T24) -> 302051.3356 | J13: 3758 | K13: 3825 | L13: ='Forecast charges BH'!J24 -> 3868 | M13: ='Forecast charges BH'!K24 -> 4332.16 | N13: ='Forecast charges BH'!L24 -> 4852.0192 | O13: ='Forecast charges BH'!M24 -> 5434.261504 | P13: ='Forecast charges BH'!N24 -> 6086.372884
B14: Re-energisation | C14: 253237.4385 | D14: 257446.0172 | E14: =SUM('Forecast charges BH'!P22:P23) -> 269364.6611 | F14: =SUM('Forecast charges BH'!Q22:Q23) -> 301688.4204 | G14: =SUM('Forecast charges BH'!R22:R23) -> 337891.0309 | H14: =SUM('Forecast charges BH'!S22:S23) -> 378437.9546 | I14: =SUM('Forecast charges BH'!T22:T23) -> 423850.5091 | J14: 4624 | K14: 4689 | L14: =SUM('Forecast charges BH'!J22:J23) -> 4758 | M14: =SUM('Forecast charges BH'!K22:K23) -> 5328.96 | N14: =SUM('Forecast charges BH'!L22:L23) -> 5968.4352 | O14: =SUM('Forecast charges BH'!M22:M23) -> 6684.647424 | P14: =SUM('Forecast charges BH'!N22:N23) -> 7486.805115
B15: MISCELLANEOUS FEE-BASED SERVICES
B16: Meter/NMI/site investigation | C16: 206641.7245 | D16: 202508.8901 | E16: ='Forecast charges BH'!P15 -> 212232.1759 | F16: ='Forecast charges BH'!Q15 -> 214354.4977 | G16: ='Forecast charges BH'!R15 -> 216498.0426 | H16: ='Forecast charges BH'!S15 -> 218663.0231 | I16: ='Forecast charges BH'!T15 -> 220849.6533 | J16: 704.9475 | K16: 726.75 | L16: ='Forecast charges BH'!J15 -> 765 | M16: ='Forecast charges BH'!K15 -> 772.65 | N16: ='Forecast charges BH'!L15 -> 780.3765 | O16: ='Forecast charges BH'!M15 -> 788.180265 | P16: ='Forecast charges BH'!N15 -> 796.0620677
B17: Meter accuracy test | C17: 30793.66876 | D17: 30177.79538 | E17: ='Forecast charges BH'!P16 -> 31626.75562 | F17: ='Forecast charges BH'!Q16 -> 31626.75562 | G17: ='Forecast charges BH'!R16 -> 31626.75562 | H17: ='Forecast charges BH'!S16 -> 31626.75562 | I17: ='Forecast charges BH'!T16 -> 31626.75562 | J17: 105.051 | K17: 108.3 | L17: ='Forecast charges BH'!J16 -> 114 | M17: ='Forecast charges BH'!K16 -> 114 | N17: ='Forecast charges BH'!L16 -> 114 | O17: ='Forecast charges BH'!M16 -> 114 | P17: ='Forecast charges BH'!N16 -> 114
B18: Special reading | C18: 3154.130456 | D18: 3253.734576 | E18: ='Forecast charges BH'!P18 -> 3239.461785 | F18: ='Forecast charges BH'!Q18 -> 3239.461785 | G18: ='Forecast charges BH'!R18 -> 3239.461785 | H18: ='Forecast charges BH'!S18 -> 3239.461785 | I18: ='Forecast charges BH'!T18 -> 3239.461785 | J18: 139 | K18: 139 | L18: ='Forecast charges BH'!J18 -> 139 | M18: ='Forecast charges BH'!K18 -> 139 | N18: ='Forecast charges BH'!L18 -> 139 | O18: ='Forecast charges BH'!M18 -> 139 | P18: ='Forecast charges BH'!N18 -> 139
B19: Service truck visit | C19: 1122881.721 | D19: 1150953.764 | E19: 0 | F19: 0 | G19: 0 | H19: 0 | I19: 0 | J19: 2089 | K19: 2089 | L19: 0 | M19: 0 | N19: 0 | O19: 0 | P19: 0
B20: Wasted truck visit | C20: 321045.615 | D20: 324256.0711 | E20: 0 | F20: 0 | G20: 0 | H20: 0 | I20: 0 | J20: 932 | K20: 932 | L20: 0 | M20: 0 | N20: 0 | O20: 0 | P20: 0
B21: Remote meter reconfiguration | C21: 375663.54 | D21: 383330.1428 | E21: ='Forecast charges BH'!P19 -> 381648.6316 | F21: ='Forecast charges BH'!Q19 -> 381648.6316 | G21: ='Forecast charges BH'!R19 -> 381648.6316 | H21: ='Forecast charges BH'!S19 -> 381648.6316 | I21: ='Forecast charges BH'!T19 -> 381648.6316 | J21: 5768 | K21: 5768 | L21: ='Forecast charges BH'!J19 -> 5768 | M21: ='Forecast charges BH'!K19 -> 5768 | N21: ='Forecast charges BH'!L19 -> 5768 | O21: ='Forecast charges BH'!M19 -> 5768 | P21: ='Forecast charges BH'!N19 -> 5768
B22: Remote energisation | C22: 514138.7 | D22: 523875.486 | E22: 0 | F22: 0 | G22: 0 | H22: 0 | I22: 0 | J22: 45499 | K22: 45953.99 | L22: 0 | M22: 0 | N22: 0 | O22: 0 | P22: 0
B23: Remote de‑energisation | C23: 463639 | D23: 523875.486 | J23: 41030 | K23: 45953.99 | L23: 0 | M23: 0 | N23: 0 | O23: 0 | P23: 0
B24: Isolation of supply or reconnection, excluding HV (single) | E24: ='Forecast charges BH'!P34+'Forecast charges AH'!P32 -> 182493.3437 | F24: ='Forecast charges BH'!Q34+'Forecast charges AH'!Q32 -> 188603.0124 | G24: ='Forecast charges BH'!R34+'Forecast charges AH'!R32 -> 188603.0124 | H24: ='Forecast charges BH'!S34+'Forecast charges AH'!S32 -> 188603.0124 | I24: ='Forecast charges BH'!T34+'Forecast charges AH'!T32 -> 188603.0124 | L24: ='Forecast charges BH'!J34+'Forecast charges AH'!J32 -> 550.6604667 | M24: ='Forecast charges BH'!K34+'Forecast charges AH'!K32 -> 550.6604667 | N24: ='Forecast charges BH'!L34+'Forecast charges AH'!L32 -> 550.6604667 | O24: ='Forecast charges BH'!M34+'Forecast charges AH'!M32 -> 550.6604667 | P24: ='Forecast charges BH'!N34+'Forecast charges AH'!N32 -> 550.6604667
B25: Isolation of supply and reconnection after isolation, excluding HV (same day) | E25: ='Forecast charges BH'!P35 -> 50487.7068 | F25: ='Forecast charges BH'!Q35 -> 51745.05236 | G25: ='Forecast charges BH'!R35 -> 51745.05236 | H25: ='Forecast charges BH'!S35 -> 51745.05236 | I25: ='Forecast charges BH'!T35 -> 51745.05236 | L25: ='Forecast charges BH'!J35 -> 86.18802841 | M25: ='Forecast charges BH'!K35 -> 86.18802841 | N25: ='Forecast charges BH'!L35 -> 86.18802841 | O25: ='Forecast charges BH'!M35 -> 86.18802841 | P25: ='Forecast charges BH'!N35 -> 86.18802841
B26: Standard alteration, <60 minutes | E26: ='Forecast charges BH'!P36+'Forecast charges AH'!P34 -> 810314.6003 | F26: ='Forecast charges BH'!Q36+'Forecast charges AH'!Q34 -> 837615.5472 | G26: ='Forecast charges BH'!R36+'Forecast charges AH'!R34 -> 837615.5472 | H26: ='Forecast charges BH'!S36+'Forecast charges AH'!S34 -> 837615.5472 | I26: ='Forecast charges BH'!T36+'Forecast charges AH'!T34 -> 837615.5472 | L26: ='Forecast charges BH'!J36+'Forecast charges AH'!J34 -> 1413.501522 | M26: ='Forecast charges BH'!K36+'Forecast charges AH'!K34 -> 1413.501522 | N26: ='Forecast charges BH'!L36+'Forecast charges AH'!L34 -> 1413.501522 | O26: ='Forecast charges BH'!M36+'Forecast charges AH'!M34 -> 1413.501522 | P26: ='Forecast charges BH'!N36+'Forecast charges AH'!N34 -> 1413.501522
B27: Complex alteration, > 60 minutes | E27: ='Forecast charges BH'!P37+'Forecast charges AH'!P35 -> 127298.7516 | F27: ='Forecast charges BH'!Q37+'Forecast charges AH'!Q35 -> 132933.7101 | G27: ='Forecast charges BH'!R37+'Forecast charges AH'!R35 -> 132933.7101 | H27: ='Forecast charges BH'!S37+'Forecast charges AH'!S35 -> 132933.7101 | I27: ='Forecast charges BH'!T37+'Forecast charges AH'!T35 -> 132933.7101 | L27: ='Forecast charges BH'!J37+'Forecast charges AH'!J35 -> 169.6499831 | M27: ='Forecast charges BH'!K37+'Forecast charges AH'!K35 -> 169.6499831 | N27: ='Forecast charges BH'!L37+'Forecast charges AH'!L35 -> 169.6499831 | O27: ='Forecast charges BH'!M37+'Forecast charges AH'!M35 -> 169.6499831 | P27: ='Forecast charges BH'!N37+'Forecast charges AH'!N35 -> 169.6499831
B28: Failed field visit (unable to perform customer requested task) | E28: ='Forecast charges AH'!P36+'Forecast charges BH'!P38 -> 194881.9291 | F28: ='Forecast charges AH'!Q36+'Forecast charges BH'!Q38 -> 194881.9291 | G28: ='Forecast charges AH'!R36+'Forecast charges BH'!R38 -> 194881.9291 | H28: ='Forecast charges AH'!S36+'Forecast charges BH'!S38 -> 194881.9291 | I28: ='Forecast charges AH'!T36+'Forecast charges BH'!T38 -> 194881.9291 | L28: ='Forecast charges BH'!J38+'Forecast charges AH'!J36 -> 577 | M28: ='Forecast charges BH'!K38+'Forecast charges AH'!K36 -> 577 | N28: ='Forecast charges BH'!L38+'Forecast charges AH'!L36 -> 577 | O28: ='Forecast charges BH'!M38+'Forecast charges AH'!M36 -> 577 | P28: ='Forecast charges BH'!N38+'Forecast charges AH'!N36 -> 577

Sheet Quoted services RIN
B1: REGULATORY REPORTING STATEMENT
B2: United Energy
B3: 2021-22 to 2025-26
B4: 4.4 ANCILLARY SERVICES - QUOTED SERVICES
B6: There are TWO tables on this worksheet. The COLUMNS representing each table have been 'grouped' for easy navigation. See the Instructions sheet on how to group or ungroup data.
B8: 4.4.1 - COST METRICS FOR QUOTED SERVICES
B9: SERVICE SUBCATEGORY | C9: EXPENDITURE ($0's, real June 2021) | J9: VOLUMES (0's)
C10: 2019-20 | D10: 2020-21 | E10: 2021-22 | F10: 2022-23 | G10: 2023-24 | H10: 2024-25 | I10: 2025-26 | J10: 2019-20 | K10: 2020-21 | L10: 2021-22 | M10: 2022-23 | N10: 2023-24 | O10: 2024-25 | P10: 2025-26
B11: Connection services | C11: 12737.745 | D11: 12928.81117 | J11: 57 | K11: 57
B12: Ancillary services | C12: 1533310.551 | D12: 1563976.762 | J12: 680 | K12: 680
B13: Audit design and construction | E13: 619789.6917 | F13: 619789.6917 | G13: 619789.6917 | H13: 619789.6917 | I13: 619789.6917 | L13: 305 | M13: 305 | N13: 305 | O13: 305 | P13: 305
B14: Specification and design enquiry | E14: 746040.4625 | F14: 746040.4625 | G14: 746040.4625 | H14: 746040.4625 | I14: 746040.4625 | L14: 313 | M14: 313 | N14: 313 | O14: 313 | P14: 313
B15: High load escorts–surveying and lifting overhead lines | E15: 32833.82265 | F15: 32833.82265 | G15: 32833.82265 | H15: 32833.82265 | I15: 32833.82265 | L15: 25 | M15: 25 | N15: 25 | O15: 25 | P15: 25
B16: No-go zone safety-related services | E16: 94579.16685 | F16: 94579.16685 | G16: 94579.16685 | H16: 94579.16685 | I16: 94579.16685 | L16: 54 | M16: 54 | N16: 54 | O16: 54 | P16: 54
B17: Elective undergrounding | E17: 64937.35856 | F17: 64937.35856 | G17: 64937.35856 | H17: 64937.35856 | I17: 64937.35856 | L17: 36 | M17: 36 | N17: 36 | O17: 36 | P17: 36
B18: Reserve feeder maintenance | E18: 5796.260196 | F18: 5796.260196 | G18: 5796.260196 | H18: 5796.260196 | I18: 5796.260196 | L18: 4 | M18: 4 | N18: 4 | O18: 4 | P18: 4
